bitfinex/quotes_ETHUSD_20251015
["timestamp","ask_amount","ask_price","bid_price","bid_amount"]
[1760504433831,2.456,4129.1,4129.0,2.42189392]
[1760504434051,2.456,4129.1,4129.0,2.92873089]
[1760504434447,2.456,4129.1,4129.0,3.37313089]
[1760504435360,4.638,4129.1,4129.0,3.49393089]
[1760504435569,4.638,4129.1,4129.0,3.04953089]
[1760504435763,2.456,4129.1,4128.1,1.92]
[1760504435967,0.1208,4129.0,4128.3,0.1208]
[1760504436263,0.1208,4128.5,4127.9,2.4225393]
[1760504436449,2.457,4128.4,4128.3,2.42230458]
[1760504436652,2.457,4128.4,4128.3,2.86670458]
[1760504437174,2.457,4128.4,4128.3,2.42230458]
[1760504437670,0.1311,4130.0,4128.4,2.42220014]
[1760504437845,1.92,4129.7,4129.2,2.42176531]
[1760504438046,2.0511,4130.0,4128.7,2.8664699]
[1760504438047,0.1208,4129.1,4128.7,2.8664699]
[1760504438245,0.1208,4129.1,4129.0,2.42189392]
[1760504438433,0.1208,4129.1,4128.8,3.17970046]
[1760504438434,0.1311,4130.3,4128.9,2.54275059]
[1760504438634,0.1208,4129.7,4129.6,2.42154203]
[1760504439661,0.706,4130.2,4129.4,2.42162357]
[1760504439662,0.1328,4130.7,4130.1,2.42122991]
[1760504439867,2.458,4130.6,4130.1,2.42122991]
[1760504440048,0.1208,4130.1,4130.0,2.4213047]
[1760504440247,0.1328,4130.5,4130.0,2.4213047]
[1760504440468,0.1328,4130.4,4130.0,2.4213047]
[1760504441092,0.1328,4130.4,4130.1,2.42123083]
[1760504442152,0.1208,4130.1,4130.0,2.4213075]
[1760504442358,2.5778,4130.1,4130.0,2.4213075]
[1760504443371,2.5778,4130.1,4129.2,2.42177661]
[1760504443557,2.5778,4130.1,4129.0,0.4396]
[1760504443558,0.1208,4130.2,4130.0,2.4213075]
[1760504443763,0.1208,4130.2,4128.3,0.002]
[1760504443764,0.2159,4130.9,4130.1,0.90933075]
[1760504443984,2.457,4130.8,4130.7,2.42089718]
[1760504444759,2.457,4130.8,4130.6,2.42094141]
[1760504445287,2.457,4130.8,4130.1,0.2276]
[1760504445288,2.3148,4130.7,4130.1,2.42124599]
[1760504445494,4.2348,4130.7,4129.3,0.4396]
[1760504445665,4.2348,4130.7,4129.4,0.02421659]
[1760504445866,3.548,4130.6,4130.3,2.42112769]
[1760504446201,2.457,4130.6,4130.5,2.4210144]
[1760504446557,2.457,4130.6,4130.5,2.8606144]
[1760504450276,2.457,4130.6,4130.5,2.4210144]
[1760504450688,2.457,4130.6,4130.4,2.42107025]
[1760504451008,2.457,4130.6,4129.7,0.4396]
[1760504451309,2.457,4130.5,4130.4,2.42105733]
[1760504451527,2.457,4130.5,4130.0,2.42125773]
[1760504451809,2.457,4130.5,4130.0,0.28608577]
[1760504452009,2.457,4130.5,4130.4,2.42107301]
[1760504452310,2.457,4130.5,4130.4,2.86067301]
[1760504452512,2.457,4130.5,4130.4,0.4396]
[1760504452684,2.457,4130.5,4130.4,2.86067301]
[1760504453514,2.457,4130.5,4130.4,2.42107301]
[1760504453809,2.457,4130.5,4130.4,2.54187301]
[1760504454711,2.457,4130.5,4130.4,2.42107301]
[1760504455424,4.639,4130.5,4130.4,2.42107301]
[1760504457110,0.1208,4130.8,4130.4,2.85247301]
[1760504457297,2.456,4130.7,4130.5,2.8524144]
[1760504457502,2.456,4130.6,4130.5,2.4210144]
[1760504457698,2.456,4130.6,4130.4,0.63894595]
[1760504457699,0.001,4131.2,4130.8,0.1208]
[1760504457904,2.456,4131.1,4131.0,2.42072137]
[1760504458218,2.456,4131.1,4131.0,2.54152137]
[1760504459614,2.456,4131.1,4130.5,2.42100593]
[1760504459615,2.456,4131.1,4130.8,2.42083329]
[1760504459815,0.1208,4130.9,4130.0,0.1208]
[1760504460021,0.1208,4130.7,4130.3,0.002]
[1760504460315,0.3496,4130.8,4130.3,0.002]
[1760504460528,2.54200471,4130.6,4130.3,0.002]
[1760504460827,0.2286,4130.8,4130.4,2.42106407]
[1760504460988,2.5778,4130.5,4130.3,0.002]
[1760504461632,0.121,4130.4,4130.3,0.002]
[1760504462029,2.5778,4130.5,4130.3,0.002]
[1760504462324,0.1208,4130.5,4130.4,2.42107301]
[1760504462494,0.001,4131.2,4130.8,2.42082745]
[1760504462691,0.001,4131.2,4130.4,0.50862894]
[1760504462692,2.457,4131.1,4130.9,2.42077553]
[1760504462963,2.457,4131.1,4131.0,2.42072137]
[1760504463143,2.5778,4131.1,4131.0,2.42072137]
[1760504464264,2.5778,4131.1,4130.6,0.5522]
[1760504464429,2.5778,4131.1,4131.0,2.42072137]
[1760504465030,2.5778,4131.1,4130.6,2.54170622]
[1760504465225,2.182,4131.0,4130.6,0.1208]
[1760504465522,2.182,4131.0,4130.1,0.4314]
[1760504465523,1.213,4131.0,4130.7,2.42089508]
[1760504465755,2.5778,4131.1,4131.0,2.42072137]
[1760504465924,2.5778,4131.1,4130.3,0.1228]
[1760504466325,2.5778,4131.1,4130.7,2.42088424]
[1760504466533,0.2264,4130.8,4130.3,0.1228]
[1760504466757,0.1208,4130.5,4130.3,0.002]
[1760504466961,2.458,4130.4,4130.3,2.42313163]
[1760504467123,0.1208,4130.8,4130.7,2.42089718]
[1760504467329,0.001,4131.2,4130.6,0.1208]
[1760504467637,2.458,4130.8,4130.7,2.42089718]
[1760504468627,2.458,4130.8,4130.3,0.002]
[1760504468855,2.458,4130.8,4130.7,2.42089718]
[1760504469529,2.458,4130.8,4130.3,0.002]
[1760504469530,2.5821,4130.8,4130.3,0.002]
[1760504469750,0.1241,4130.7,4130.3,0.002]
[1760504469959,0.1208,4130.5,4130.3,0.002]
[1760504470562,0.1241,4130.4,4130.3,0.002]
[1760504470889,0.39068159,4130.4,4130.3,0.002]
[1760504471189,2.8117546,4130.4,4130.3,0.002]
[1760504471861,4.7317546,4130.4,4130.3,0.002]
[1760504472062,4.76968159,4130.4,4130.3,0.002]
[1760504472463,7.1907546,4130.4,4130.3,0.002]
[1760504472872,7.8243546,4130.4,4130.3,0.002]
[1760504474203,8.06193155,4130.4,4130.3,0.002]
[1760504474692,5.60293155,4130.4,4130.3,0.002]
[1760504474890,4.7317546,4130.4,4130.3,0.002]
[1760504475092,4.46517301,4130.4,4130.3,0.002]
[1760504475279,4.7651,4130.4,4130.3,0.002]
[1760504475486,7.18617301,4130.4,4130.3,0.002]
[1760504475676,6.561,4130.4,4130.3,0.002]
[1760504476266,0.2254,4130.9,4130.3,0.002]
[1760504476469,0.001,4131.2,4130.3,0.4533]
[1760504476767,0.1208,4130.8,4130.7,2.42084145]
[1760504477190,0.1208,4130.8,4130.7,4.79214145]
[1760504477393,0.1208,4130.8,4130.7,5.70545704]
[1760504478000,0.1208,4131.1,4131.0,2.42068363]
[1760504478206,2.5808,4131.1,4131.0,2.42068363]
[1760504478710,2.5808,4131.1,4130.9,2.42074345]
[1760504479087,2.5808,4131.1,4130.4,0.1208]
[1760504479286,2.46,4131.1,4130.3,0.4533]
[1760504479595,0.1208,4130.7,4130.3,0.4533]
[1760504479796,2.46,4130.6,4130.4,2.87237301]
[1760504480004,2.46,4130.6,4130.5,2.8723144]
[1760504481612,2.46,4130.6,4130.4,0.3110573]
[1760504481791,2.46,4130.6,4130.3,0.002]
[1760504482505,0.1208,4130.4,4130.3,0.002]
[1760504483077,0.1208,4130.4,4130.3,2.42313163]
[1760504483706,0.1208,4130.4,4130.3,0.002]
[1760504483907,0.1208,4130.4,4130.3,2.42313163]
[1760504484109,0.2339,4134.0,4130.3,0.71923316]
[1760504484110,0.003,4131.4,4130.3,0.71923316]
[1760504484283,0.1208,4131.0,4130.9,2.42077997]
[1760504485005,0.1208,4131.0,4130.4,0.4513]
[1760504485205,0.2327,4130.9,4130.4,2.42107301]
[1760504485409,0.1208,4130.6,4130.4,2.42107301]
[1760504485617,2.46,4130.5,4130.4,2.42107301]
[1760504486411,2.46,4130.5,4130.4,3.3567982]
[1760504487388,0.1208,4130.6,4130.5,2.4210144]
[1760504487592,0.824,4130.6,4130.5,2.8723144]
[1760504488117,0.824,4130.6,4130.5,2.4210144]
[1760504489001,0.9448,4130.6,4130.5,2.4210144]
[1760504491822,0.9448,4130.6,4130.3,0.002]
[1760504491823,1.0605,4130.6,4130.3,0.002]
[1760504492024,0.9397,4130.6,4130.3,0.002]
[1760504492236,0.1157,4130.5,4130.3,0.002]
[1760504492394,4.34107301,4130.4,4130.3,0.002]
[1760504492795,5.09037301,4130.4,4130.3,0.002]
[1760504493927,5.47018575,4130.4,4130.3,0.002]
[1760504494107,6.35464756,4130.4,4130.3,0.002]
[1760504494729,5.97483482,4130.4,4130.3,0.002]
[1760504495203,7.06583482,4130.4,4130.3,0.002]
[1760504495408,8.15683482,4130.4,4130.3,0.002]
[1760504497039,0.12944,4130.6,4130.3,0.002]
[1760504497193,2.459,4130.5,4130.3,0.002]
[1760504497397,0.61369071,4130.9,4130.3,0.002]
[1760504497623,2.459,4130.8,4130.3,0.002]
[1760504497840,0.001,4131.2,4130.4,2.42101611]
[1760504497995,0.1208,4130.5,4130.4,2.42107301]
[1760504498328,2.5798,4130.5,4130.4,2.42107301]
[1760504498631,2.5798,4130.5,4130.3,2.42311933]
[1760504498797,2.5798,4130.5,4130.3,0.002]
[1760504498998,5.09157301,4130.4,4130.3,0.002]
[1760504499630,3.17157301,4130.4,4130.3,0.002]
[1760504500517,18.55752378,4130.4,4130.3,0.002]
[1760504501028,3.05496613,4129.9,4129.8,0.002]
[1760504501235,3.05520067,4129.5,4129.4,1e-08]
[1760504501445,3.60287233,4129.5,4129.4,1e-08]
[1760504501610,6.18167233,4129.5,4129.4,1e-08]
[1760504503133,8.10167233,4129.5,4129.4,1e-08]
[1760504504248,0.2132,4129.9,4129.4,1e-08]
[1760504504436,0.37987726,4130.2,4129.4,1e-08]
[1760504504738,2.461,4130.1,4129.5,0.4291]
[1760504504903,2.42131106,4130.0,4129.5,0.4291]
[1760504505107,2.42136924,4129.9,4129.4,1e-08]
[1760504505412,2.182,4129.8,4129.4,1e-08]
[1760504505736,2.462,4129.7,4129.4,1e-08]
[1760504506520,3.16853465,4129.7,4129.4,1e-08]
[1760504507406,2.462,4129.7,4129.4,1e-08]
[1760504507819,2.462,4129.7,4129.4,2.85073592]
[1760504508254,2.462,4129.7,4129.4,0.42910001]
[1760504508970,2.462,4129.7,4129.4,1e-08]
[1760504512966,1.92,4129.6,4129.4,1e-08]
[1760504513168,4.79084067,4129.5,4129.4,1e-08]
[1760504513371,5.42444067,4129.5,4129.4,1e-08]
[1760504513696,5.53484067,4129.5,4129.4,1e-08]
[1760504514399,2.36924,4129.5,4129.4,1e-08]
[1760504514603,4.38,4129.5,4129.4,1e-08]
[1760504515307,3.011,4129.5,4129.4,1e-08]
[1760504515473,6.562,4129.5,4129.4,0.45270001]
[1760504515673,3.551,4129.5,4129.4,0.45270001]
[1760504515868,0.001,4129.7,4129.4,0.45270001]
[1760504516096,2.46,4129.6,4129.5,0.4527]
[1760504516498,2.46,4129.6,4129.5,2.87430067]
[1760504517389,0.1208,4129.5,4129.4,1e-08]
[1760504518396,0.37898,4129.5,4129.4,1e-08]
[1760504518594,0.1208,4129.5,4129.4,1e-08]
[1760504520231,0.1208,4129.5,4129.4,2.42165933]
[1760504520397,0.001,4129.7,4129.6,2.42154203]
[1760504520880,2.454,4129.7,4129.6,2.87424203]
[1760504521382,2.454,4129.7,4129.4,2.42165933]
[1760504521383,2.454,4129.7,4129.4,1e-08]
[1760504521583,2.6994,4129.7,4129.4,1e-08]
[1760504521976,2.42160067,4129.5,4129.4,1e-08]
[1760504522218,1.92,4129.6,4129.4,1e-08]
[1760504524975,4.44190067,4129.5,4129.4,1e-08]
[1760504525391,6.62390067,4129.5,4129.4,1e-08]
[1760504525611,7.79837471,4129.5,4129.4,1e-08]
[1760504525773,6.24997471,4129.5,4129.4,1e-08]
[1760504528318,8.71097471,4129.5,4129.4,1e-08]
[1760504531031,8.70997471,4129.5,4129.4,1e-08]
[1760504535245,9.80197471,4129.5,4129.4,1e-08]
[1760504535448,10.89397471,4129.5,4129.4,1e-08]
[1760504536321,10.89397471,4129.5,4128.9,0.002]
[1760504536322,4.97549392,4129.0,4128.9,1e-08]
[1760504536503,21.03003223,4129.0,4128.9,1e-08]
[1760504536702,21.13033223,4129.0,4128.9,1e-08]
[1760504536899,21.51033634,4129.0,4128.9,1e-08]
[1760504537934,21.50933634,4129.0,4128.9,1e-08]
[1760504538102,19.05033634,4129.0,4128.9,1e-08]
[1760504538465,6.19552876,4129.0,4128.9,1e-08]
[1760504538610,8.65452876,4129.0,4128.9,1e-08]
[1760504543049,6.09522876,4129.0,4128.9,1e-08]
[1760504543213,8.55522876,4129.0,4128.9,1e-08]
[1760504543611,2.80189803,4129.0,4128.9,0.47480001]
[1760504543851,0.38000411,4129.0,4128.9,0.47480001]
[1760504544012,2.84000411,4129.0,4128.9,0.47480001]
[1760504544209,5.39360411,4129.0,4128.9,1e-08]
[1760504544414,6.80189392,4129.0,4128.9,1e-08]
[1760504544645,7.43549392,4129.0,4128.9,1e-08]
[1760504544847,8.42122465,4129.0,4128.9,1e-08]
[1760504545259,10.60522465,4129.0,4128.9,1e-08]
[1760504545412,9.61352465,4129.0,4128.9,1e-08]
[1760504546331,8.52152465,4129.0,4128.9,1e-08]
[1760504546645,8.90149275,4129.0,4128.9,1e-08]
[1760504548749,3.0561393,4127.9,4127.3,0.4768]
[1760504548951,7.4361393,4127.9,4127.3,0.4768]
[1760504549529,7.81616635,4127.9,4127.3,0.4768]
[1760504552027,21.00187393,4127.9,4127.3,0.002]
[1760504552239,3.05637407,4127.5,4127.4,1e-08]
[1760504552440,7.43637407,4127.5,4127.4,1e-08]
[1760504552641,4.9766676,4127.0,4126.9,1e-08]
[1760504552860,7.4366676,4127.0,4126.9,1e-08]
[1760504553251,7.81678141,4127.0,4126.9,1e-08]
[1760504553449,8.85101812,4127.0,4126.9,1e-08]
[1760504555332,11.03501812,4127.0,4126.9,1e-08]
[1760504555533,8.57501812,4127.0,4126.9,0.47480001]
[1760504555733,8.90878141,4127.0,4126.9,0.47480001]
[1760504556233,3.43678141,4127.0,4126.9,0.47480001]
[1760504556562,7.81678141,4127.0,4126.9,0.47480001]
[1760504557667,7.18318141,4127.0,4126.9,0.47480001]
[1760504559062,4.76011381,4127.0,4126.9,0.47480001]
[1760504559269,2.30011381,4127.0,4126.9,0.47480001]
[1760504559461,4.75911381,4127.0,4126.9,0.47480001]
[1760504560167,4.379,4127.0,4126.9,0.47480001]
[1760504560364,2.459,4127.0,4126.9,0.47480001]
[1760504561443,2.42201123,4128.8,4126.9,0.47480001]
[1760504561642,0.1208,4127.1,4126.9,0.47480001]
[1760504561966,0.1208,4127.1,4127.0,2.4230676]
[1760504562147,2.5798,4127.1,4127.0,2.4230676]
[1760504562349,2.5798,4127.1,4127.0,2.8781676]
[1760504563838,2.5798,4127.1,4127.0,4.7981676]
[1760504564038,2.459,4127.1,4127.0,5.52030056]
[1760504564275,2.80204068,4128.8,4127.7,2.42262557]
[1760504564484,4.8810699,4128.7,4127.8,0.6869]
[1760504564648,4.8810699,4128.7,4127.9,0.4551]
[1760504564852,2.42227447,4128.4,4127.9,0.4551]
[1760504565050,2.459,4128.3,4127.9,0.4551]
[1760504565284,0.1208,4127.9,4127.8,0.2318]
[1760504565482,2.5798,4127.9,4127.8,0.2318]
[1760504565783,2.5798,4127.9,4127.8,0.6869]
[1760504566988,2.5798,4127.9,4127.4,0.2318]
[1760504567182,1.92,4127.8,4127.5,0.4551]
[1760504567382,1.092,4128.2,4127.5,0.4551]
[1760504567383,2.42238549,4128.2,4127.5,0.4551]
[1760504567584,2.459,4128.1,4127.5,0.4551]
[1760504567787,2.459,4128.0,4127.5,0.4551]
[1760504568287,0.1208,4127.5,4127.4,2.42278647]
[1760504568470,0.1208,4127.5,4127.3,0.2318]
[1760504568471,2.5798,4127.5,4127.3,0.2318]
[1760504568863,2.5798,4127.5,4127.4,0.4551]
[1760504570963,2.5798,4127.5,4127.3,0.2318]
[1760504571365,2.5798,4127.5,4127.3,0.6869]
[1760504572900,2.5798,4127.5,4126.9,1e-08]
[1760504573101,2.42283517,4127.4,4126.9,1e-08]
[1760504573400,1.92,4127.4,4126.9,1e-08]
[1760504573586,4.34284805,4127.4,4126.9,1e-08]
[1760504574518,1.92,4127.4,4126.9,1e-08]
[1760504574672,2.42289147,4127.3,4126.9,1e-08]
[1760504575014,2.458,4127.2,4126.9,1e-08]
[1760504575312,2.184,4127.1,4126.9,1e-08]
[1760504578698,1.092,4127.1,4126.9,1e-08]
[1760504578914,0.59728947,4127.0,4126.9,1e-08]
[1760504579087,3.05428947,4127.0,4126.9,1e-08]
[1760504579811,7.50465707,4127.0,4126.9,1e-08]
[1760504579980,6.9073676,4127.0,4126.9,1e-08]
[1760504581176,7.5409676,4127.0,4126.9,1e-08]
[1760504584512,7.92113059,4127.0,4126.9,1e-08]
[1760504585292,10.10513059,4127.0,4126.9,1e-08]
[1760504585495,11.36766224,4127.0,4126.9,1e-08]
[1760504586315,10.27566224,4127.0,4126.9,1e-08]
[1760504586483,9.18366224,4127.0,4126.9,1e-08]
[1760504588138,3.56269464,4127.0,4126.9,1e-08]
[1760504588331,2.83716299,4127.0,4126.9,0.45290001]
[1760504588628,7.18023059,4127.0,4126.9,1e-08]
[1760504588925,4.75716299,4127.0,4126.9,0.45290001]
[1760504590220,2.30016299,4127.0,4126.9,0.45290001]
[1760504590384,4.75716299,4127.0,4126.9,0.45290001]
[1760504591239,4.75716299,4127.0,4126.9,1e-08]
[1760504592140,2.30016299,4127.0,4126.9,0.47380001]
[1760504592343,0.38016299,4127.0,4126.9,3.18682421]
[1760504592542,2.457,4127.0,4126.9,3.18682421]
[1760504593124,0.001,4127.5,4127.2,2.42293277]
[1760504593350,2.457,4127.4,4127.1,2.42300103]
[1760504593552,0.001,4127.5,4127.3,0.237]
[1760504593729,2.457,4127.4,4127.3,0.237]
[1760504593931,2.457,4127.4,4127.3,0.7108]
[1760504595355,6.561,4127.4,4127.3,0.7108]
[1760504597129,2.457,4127.4,4127.3,0.7108]
[1760504599778,2.457,4127.4,4127.3,0.237]
[1760504600351,2.457,4127.4,4127.3,0.7108]
[1760504601288,0.001,4127.5,4127.3,0.7108]
[1760504601443,0.001,4127.5,4127.4,2.89663277]
[1760504601640,2.458,4127.5,4127.4,2.89663277]
[1760504604074,0.001,4127.5,4127.4,2.89663277]
[1760504604355,0.727,4127.5,4127.4,3.01743277]
[1760504604552,0.001,4127.5,4127.4,3.04166109]
[1760504604762,0.001,4127.5,4127.4,8.90363811]
[1760504604963,0.001,4128.4,4127.9,10.8920296]
[1760504605186,0.001,4128.4,4127.9,11.0128296]
[1760504605388,0.1218,4129.0,4127.9,11.0128296]
[1760504605389,0.001,4129.0,4128.4,4.3422459]
[1760504605684,0.001,4129.5,4128.4,4.3422459]
[1760504605685,0.001,4129.5,4129.4,2.42165932]
[1760504605893,0.001,4129.5,4129.4,4.97101624]
[1760504606075,0.001,4129.5,4129.4,5.29979965]
[1760504606274,0.001,4129.9,4129.5,4.34160067]
[1760504606594,0.001,4129.9,4129.6,17.83437142]
[1760504606791,0.001,4129.9,4129.6,18.283956]
[1760504606984,0.001,4129.9,4129.6,20.4266457]
[1760504607564,0.006,4129.7,4129.6,20.4266457]
[1760504607760,0.001,4129.9,4129.7,2.4214834]
[1760504607989,0.001,4129.9,4129.8,2.445639]
[1760504608195,0.001,4129.9,4129.8,2.919439]
[1760504608391,0.001,4129.9,4129.8,4.27900062]
[1760504609274,0.007,4129.9,4129.8,4.27900062]
[1760504611761,0.001,4129.9,4129.8,4.91260062]
[1760504611961,0.001,4130.6,4129.8,3.75336162]
[1760504612166,0.001,4130.6,4130.1,3.29184888]
[1760504612366,0.006,4130.2,4130.1,3.31606136]
[1760504612694,0.001,4130.6,4130.5,2.4210144]
[1760504612895,0.001,4130.6,4130.5,15.88962837]
[1760504613202,0.001,4130.6,4130.5,16.8477687]
[1760504613989,0.318,4130.6,4130.5,16.8477687]
[1760504615408,2.5,4130.6,4130.5,16.8477687]
[1760504616007,0.001,4131.2,4130.5,16.8477687]
[1760504616008,0.001,4131.2,4131.1,2.42066277]
[1760504616174,0.001,4131.2,4131.1,16.63462435]
[1760504616366,0.202,4131.2,4131.1,17.20501773]
[1760504618769,0.202,4131.2,4131.1,16.73121773]
[1760504619194,0.202,4131.2,4131.1,17.20501773]
[1760504620185,0.202,4131.2,4131.1,16.49421773]
[1760504620700,0.202,4131.2,4131.1,3.02560376]
[1760504620927,0.202,4131.2,4131.1,16.92551773]
[1760504621232,0.1238,4132.5,4131.2,3.05420418]
[1760504621437,0.1238,4132.5,4131.2,7.49381713]
[1760504621728,0.1238,4132.5,4131.2,7.90091109]
[1760504622037,0.001,4131.7,4131.2,7.90091109]
[1760504622427,0.41200001,4131.3,4131.2,4.91601109]
[1760504622594,0.41200001,4131.3,4131.2,2.42060418]
[1760504622792,0.41200001,4131.3,4131.2,2.56561022]
[1760504622997,0.90600001,4131.3,4131.2,2.99691022]
[1760504623200,0.90600001,4131.3,4131.2,0.1208]
[1760504623394,1.09700001,4131.3,4130.5,0.48434033]
[1760504623594,1.09700001,4131.3,4130.1,0.237]
[1760504623595,0.1342,4130.6,4129.7,0.4313]
[1760504623808,0.1342,4130.6,4130.3,2.42111644]
[1760504623809,0.1969,4130.5,4130.3,2.42111644]
[1760504624023,0.1969,4130.4,4128.9,0.4313]
[1760504624224,0.1342,4130.6,4129.7,2.42143128]
[1760504624556,0.1969,4130.3,4129.5,2.42159883]
[1760504624694,0.1969,4130.3,4129.7,2.4214834]
[1760504625129,0.1969,4130.3,4129.6,0.24215988]
[1760504625330,2.588,4130.2,4129.6,2.66365553]
[1760504625510,2.454,4130.1,4129.6,2.66365553]
[1760504625711,0.406,4130.0,4129.9,2.42135153]
[1760504626320,0.406,4130.0,4129.8,2.42141502]
[1760504626523,0.406,4129.9,4129.8,2.92993089]
[1760504627423,0.406,4129.9,4129.8,0.50851587]
[1760504627733,0.406,4129.9,4129.8,2.42142476]
[1760504627932,0.406,4129.9,4129.5,2.42155446]
[1760504628230,0.406,4129.8,4129.5,2.42155666]
[1760504628454,0.406,4129.8,4128.8,4.34201123]
[1760504628758,0.406,4129.8,4129.6,2.42153526]
[1760504628945,0.1843,4130.3,4129.9,2.42130767]
[1760504629145,2.6383,4130.2,4129.7,0.24215353]
[1760504629353,0.2235,4129.8,4129.5,2.42159343]
[1760504629659,0.1847,4129.7,4129.3,2.42171106]
[1760504629857,0.2235,4129.8,4129.7,2.4214834]
[1760504630062,0.4082,4129.8,4129.7,2.4214834]
[1760504630560,2.454,4130.1,4129.9,2.4213096]
[1760504630762,2.454,4130.1,4129.0,2.42189392]
[1760504630763,0.1851,4130.0,4128.7,1.92]
[1760504630939,2.42147666,4129.8,4128.8,2.42200669]
[1760504631138,0.1847,4129.7,4128.3,1.92]
[1760504631379,0.1847,4129.7,4128.2,2.65635646]
[1760504631380,0.1847,4129.7,4128.4,0.4313]
[1760504631675,2.454,4129.6,4129.5,2.42160067]
[1760504631826,2.454,4129.6,4128.9,0.02421952]
[1760504631827,0.1851,4129.6,4128.9,0.02421952]
[1760504632036,2.6391,4129.6,4128.9,1.41663287]
[1760504632435,2.6391,4129.6,4129.5,2.42160067]
[1760504633056,2.6391,4129.6,4129.0,2.42189392]
[1760504633358,2.6391,4129.6,4128.7,2.42204052]
[1760504633359,0.1851,4129.5,4128.7,2.42204052]
[1760504633550,0.1851,4129.4,4128.2,0.234]
[1760504633749,0.1851,4129.3,4128.7,2.42201643]
[1760504633941,2.454,4129.6,4128.8,2.42200611]
[1760504634130,0.1208,4129.1,4128.8,2.42200611]
[1760504634362,0.3128,4129.1,4128.9,2.42193913]
[1760504634666,2.454,4129.6,4127.6,2.42271059]
[1760504634667,0.192,4129.0,4127.6,2.42271059]
[1760504634827,1.92,4128.8,4127.1,0.2155]
[1760504635033,2.42218723,4128.5,4127.1,0.2155]
[1760504635374,2.374,4128.4,4127.2,2.42295018]
[1760504635573,0.192,4128.3,4127.6,2.42271154]
[1760504635741,1.92,4128.2,4126.9,1e-08]
[1760504635926,2.83608316,4128.2,4127.2,2.42293926]
[1760504636131,2.42238316,4128.2,4126.9,1e-08]
[1760504636339,0.4137,4128.1,4126.9,1e-08]
[1760504636565,4.375,4128.0,4126.9,1e-08]
[1760504636727,2.39887,4127.9,4126.9,1e-08]
[1760504636931,2.42265833,4127.7,4126.9,1e-08]
[1760504637233,2.42277198,4127.6,4126.9,1e-08]
[1760504637429,0.2158,4127.0,4126.9,1e-08]
[1760504637769,2.6708,4127.0,4126.9,1e-08]
[1760504637940,2.8709,4127.0,4126.9,1e-08]
[1760504639595,2.8709,4127.0,4126.9,2.42312632]
[1760504639596,2.455,4127.0,4126.9,2.42312632]
[1760504641032,0.2158,4127.4,4127.3,2.42289147]
[1760504641259,0.2158,4127.4,4127.0,2.90209827]
[1760504641260,1.32,4127.4,4127.0,2.90209827]
[1760504641469,1.32,4127.4,4126.9,0.48483377]
[1760504641470,1.32,4127.4,4127.3,2.42289147]
[1760504642076,0.2001,4128.0,4127.7,2.42264194]
[1760504642256,2.455,4127.9,4127.7,2.42264194]
[1760504642439,1.92,4127.8,4127.7,2.42264194]
[1760504642848,0.2001,4127.8,4127.0,2.4230676]
[1760504643052,0.2001,4127.8,4127.4,2.42282753]
[1760504643385,0.2001,4127.7,4127.3,2.42283946]
[1760504643592,1.92,4127.8,4127.2,2.42293819]
[1760504643593,0.2001,4127.6,4127.2,2.42293819]
[1760504643776,1.92,4127.8,4126.9,1e-08]
[1760504643777,0.2001,4127.5,4126.9,1e-08]
[1760504644178,2.1201,4127.5,4126.9,1e-08]
[1760504644384,0.21201,4127.4,4126.9,1e-08]
[1760504644559,4.375,4127.3,4126.9,1e-08]
[1760504644870,4.5751,4127.3,4126.9,1e-08]
[1760504645063,0.2001,4127.2,4126.9,1e-08]
[1760504645265,2.184,4127.1,4126.9,1e-08]
[1760504645488,2.3841,4127.1,4126.9,1e-08]
[1760504645690,0.2001,4127.0,4126.9,1e-08]
[1760504645860,3.7471,4127.0,4126.9,1e-08]
[1760504646285,2.6551,4127.0,4126.9,1e-08]
[1760504647388,0.2001,4127.0,4126.9,1e-08]
[1760504647560,2.6561,4127.0,4126.9,1e-08]
[1760504647761,4.5761,4127.0,4126.9,1e-08]
[1760504647992,1.92,4127.3,4126.9,0.45480001]
[1760504647993,0.1208,4127.3,4126.9,0.45480001]
[1760504648196,2.456,4127.2,4127.1,2.42300889]
[1760504648492,0.2156,4128.3,4127.7,2.42261396]
[1760504648694,0.1208,4127.7,4127.6,2.42270401]
[1760504648892,2.0408,4127.7,4127.0,0.2880039]
[1760504649102,4.4968,4127.7,4127.4,2.42282994]
[1760504649274,4.4968,4127.7,4127.1,2.42300889]
[1760504649275,4.4968,4127.7,4126.9,0.12080001]
[1760504649461,0.1208,4127.1,4126.9,1e-08]
[1760504649666,2.456,4127.0,4126.9,1e-08]
[1760504650083,2.6563,4127.0,4126.9,1e-08]
[1760504652082,4.5763,4127.0,4126.9,1e-08]
[1760504652273,7.71137953,4127.0,4126.9,1e-08]
[1760504652985,5.92191193,4127.0,4126.9,1e-08]
[1760504653317,8.34497953,4127.0,4126.9,1e-08]
[1760504653683,8.46379074,4127.0,4126.9,1e-08]
[1760504655281,7.09979074,4127.0,4126.9,1e-08]
[1760504655614,11.03094852,4127.0,4126.9,1e-08]
[1760504655987,5.63553731,4127.0,4126.9,1e-08]
[1760504656199,8.09453731,4127.0,4126.9,1e-08]
[1760504656506,3.21246971,4127.0,4126.9,1e-08]
[1760504656694,4.76015778,4127.0,4126.9,1e-08]
[1760504657104,4.38,4127.0,4126.9,1e-08]
[1760504657301,1.92,4127.0,4126.9,1e-08]
[1760504657502,2.46,4127.0,4126.9,1e-08]
[1760504657701,4.5803,4127.0,4126.9,1e-08]
[1760504657892,7.94599368,4127.0,4126.9,1e-08]
[1760504658091,8.57959368,4127.0,4126.9,1e-08]
[1760504658833,8.95972946,4127.0,4126.9,1e-08]